bitfinex/quotes_ETHUSD_20220111
["timestamp","ask_amount","ask_price","bid_price","bid_amount"]
[1641906735944,2.36312,3128.1,3127.9,0.18308865]
[1641906736144,2.58868679,3128.0,3127.9,0.18308865]
[1641906736347,5.05,3127.9,3127.7,2.43142769]
[1641906736548,10.09439642,3127.8,3127.7,2.43142769]
[1641906736824,0.79977,3127.5,3127.2,3.25976597]
[1641906737024,3.22812869,3127.4,3127.2,3.25976597]
[1641906737218,2.70738644,3127.3,3127.2,3.25976597]
[1641906737418,3.17138644,3127.3,3127.2,3.25976597]
[1641906737617,3.17138644,3127.3,3127.2,0.00454738]
[1641906737618,3.47138644,3127.3,3127.2,0.00454738]
[1641906738019,3.47138644,3127.3,3126.8,0.00682108]
[1641906738020,0.79979,3127.1,3126.8,0.00682108]
[1641906738218,0.464,3127.0,3126.8,0.00682108]
[1641906738817,0.27784611,3126.9,3126.8,0.00682108]
[1641906739818,0.1756541,3126.9,3126.8,0.00682108]
[1641906740649,0.1756541,3126.9,3126.8,3.26658705]
[1641906742253,0.1756541,3126.9,3126.8,0.00682108]
[1641906745196,0.464,3127.4,3126.8,4.41752858]
[1641906745396,1.59919,3128.0,3126.8,3.26658705]
[1641906745692,4.4634,3128.2,3126.9,0.00625265]
[1641906745693,0.464,3128.2,3126.9,0.00625265]
[1641906745894,0.464,3128.2,3127.1,3.25976597]
[1641906746092,1.6061876,3128.3,3127.6,0.81090803]
[1641906746093,0.7995,3128.1,3127.6,0.81090803]
[1641906746493,0.7995,3128.1,3127.7,0.00170527]
[1641906746893,0.7995,3128.1,3127.8,2.44566239]
[1641906747194,0.00113685,3128.2,3128.0,1.63024282]
[1641906747597,0.00113685,3128.2,3128.1,0.74066588]
[1641906748540,0.00113685,3128.2,3128.1,3.85024043]
[1641906749342,0.00113685,3128.2,3128.1,2.22003187]
[1641906749546,0.00113685,3128.2,3128.1,4.86944752]
[1641906750150,0.00113685,3128.2,3128.1,8.46944752]
[1641906750344,0.00113685,3128.2,3128.1,11.18596655]
[1641906750543,0.47904678,3129.1,3128.7,1.10764496]
[1641906750942,0.00454739,3129.0,3128.7,1.10764496]
[1641906751347,0.00397897,3128.9,3128.7,1.10764496]
[1641906751793,0.50184525,3129.2,3128.7,1.10764496]
[1641906751794,0.00341054,3128.8,3128.7,3.55239447]
[1641906751993,0.00341054,3128.8,3128.7,4.39072513]
[1641906752194,0.00341054,3128.8,3128.7,3.28308017]
[1641906752393,0.00341054,3128.8,3128.7,0.83833066]
[1641906753200,0.00341054,3128.8,3128.4,3.25966602]
[1641906753397,0.80276054,3128.8,3128.4,3.25966602]
[1641906753594,0.80220952,3128.7,3128.4,3.25966602]
[1641906753995,0.0022737,3128.6,3128.4,3.25966602]
[1641906754295,0.00170527,3128.5,3128.4,3.25966602]
[1641906754495,0.00170527,3128.5,3128.2,0.79732789]
[1641906754695,0.3022737,3128.5,3128.2,0.79732789]
[1641906754896,0.00113685,3128.4,3128.2,0.79732789]
[1641906760297,0.00113685,3128.4,3128.1,3.25966602]
[1641906760697,0.00113685,3128.4,3128.0,3.25966602]
[1641906761702,0.00113685,3128.4,3128.3,0.79727804]
[1641906765566,0.00113685,3128.4,3127.9,5.49998151]
[1641906765963,0.00113685,3128.4,3128.0,0.00113685]
[1641906766562,0.80054685,3128.4,3128.0,0.00113685]
[1641906766798,0.80054685,3128.4,3128.0,0.6722241]
[1641906767299,0.80054685,3128.4,3128.1,1.62498705]
[1641906768004,0.80054685,3128.4,3128.1,2.7168282]
[1641906768005,1.09945,3128.3,3128.1,2.7168282]
[1641906768802,1.09945,3128.3,3128.2,1.62498705]
[1641906769402,1.09945,3128.3,3128.2,1.54533013]
[1641906769602,1.09945,3128.3,3128.2,4.26215833]
[1641906770204,1.09945,3128.3,3128.2,2.7168282]
[1641906770460,0.79956,3128.2,3128.0,2.71796505]
[1641906770655,4.46182,3128.2,3128.0,2.71796505]
[1641906770856,0.3,3128.1,3128.0,1.27896505]
[1641906771052,1.09956,3128.1,3128.0,1.27896505]
[1641906771252,1.09956,3128.1,3127.9,4.3637]
[1641906772653,1.09956,3128.1,3127.9,4.2997]
[1641906773056,2.6987,3128.1,3127.9,4.2997]
[1641906773457,1.09956,3128.1,3127.9,4.2997]
[1641906774397,0.3,3128.1,3127.9,4.2997]
[1641906776700,1.09952,3128.1,3127.9,4.2997]
[1641906777101,0.3,3128.1,3127.9,4.2997]
[1641906778759,0.3,3128.1,3128.0,1.63033254]
[1641906779553,0.3,3128.1,3127.9,5.93003254]
[1641906780152,0.464,3128.2,3127.9,5.93003254]
[1641906780552,0.464,3128.2,3127.9,4.49103254]
[1641906780753,1.59999685,3128.4,3128.0,1.63033254]
[1641906781154,0.00170527,3128.3,3128.0,1.63033254]
[1641906781555,0.00113685,3128.2,3128.0,1.63033254]
[1641906781795,1.60010145,3128.2,3128.0,1.63033254]
[1641906781996,0.3,3128.1,3128.0,1.63033254]
[1641906783198,0.3,3128.1,3127.9,4.49103254]
[1641906783399,0.3,3128.1,3127.9,5.16227928]
[1641906784200,0.3,3128.1,3127.9,4.49103254]
[1641906784400,0.25,3128.1,3127.9,4.49103254]
[1641906785652,0.25,3128.1,3128.0,1.63033254]
[1641906785850,0.00170527,3128.3,3128.1,0.75604901]
[1641906786249,0.00113685,3128.2,3128.1,2.2469074]
[1641906786654,0.00170527,3128.2,3128.1,0.75604901]
[1641906787051,0.00170527,3128.2,3128.1,3.26607983]
[1641906787254,0.00170527,3128.2,3128.1,4.89641237]
[1641906787652,0.00170527,3128.2,3128.1,9.69289698]
[1641906788051,0.00170527,3128.2,3128.1,5.55253362]
[1641906789312,0.00170527,3128.2,3128.1,8.04555822]
[1641906790302,0.7992107,3129.2,3128.1,6.69907361]
[1641906790503,1.0992107,3129.2,3128.1,6.70021045]
[1641906790704,0.00454739,3129.1,3128.1,6.70021045]
[1641906791104,0.00397897,3129.0,3128.1,6.70021045]
[1641906791508,0.00341055,3128.9,3128.8,1.62993335]
[1641906792306,0.00341055,3128.9,3128.8,4.34648894]
[1641906792962,0.00341055,3128.9,3128.8,1.62993335]
[1641906793349,0.00341055,3128.9,3128.8,4.34648894]
[1641906794047,0.00341055,3128.9,3128.7,2.71655559]
[1641906794456,0.00284212,3128.8,3128.7,2.71655559]
[1641906794848,0.00284212,3128.8,3128.6,2.44490003]
[1641906795049,0.20284212,3128.9,3128.6,2.44490003]
[1641906795251,1.09924,3129.1,3128.6,2.44490003]
[1641906795648,0.00113685,3129.0,3128.6,2.44490003]
[1641906796551,0.3,3128.9,3128.8,1.3005175]
[1641906797007,0.00113685,3129.0,3128.6,2.44490003]
[1641906797209,0.00113685,3129.0,3128.9,0.77199879]
[1641906797703,0.00113685,3129.0,3128.7,2.44490003]
[1641906797902,0.00113685,3129.0,3128.9,2.71655559]
[1641906798903,0.00113685,3129.0,3128.9,0.81370744]
[1641906799710,0.00113685,3129.0,3128.9,2.71655559]
[1641906800303,0.00113685,3129.0,3128.6,2.71655559]
[1641906800963,2.8617321,3128.9,3128.5,2.71655559]
[1641906801155,3.24171515,3128.9,3128.5,2.71655559]
[1641906801355,0.07998305,3128.8,3128.6,0.00113684]
[1641906801556,0.07998305,3128.8,3128.4,2.44490003]
[1641906801755,3.99640789,3128.9,3128.1,3.9559]
[1641906801956,0.79946,3128.5,3128.0,1.1569]
[1641906802155,2.3983685,3128.3,3128.2,0.0022737]
[1641906802365,1.09946,3128.3,3128.2,0.0022737]
[1641906802557,1.09946,3128.3,3128.0,0.00341055]
[1641906803459,0.7994564,3128.2,3128.0,0.00341055]
[1641906803656,0.7994564,3128.2,3127.6,2.44490003]
[1641906803657,0.464,3128.1,3127.6,2.44490003]
[1641906803858,1.59931,3128.0,3127.6,2.44490003]
[1641906804056,1.59931,3128.0,3127.4,3.25986671]
[1641906804057,4.55,3127.8,3127.4,2.44490003]
[1641906804303,0.79972,3127.6,3127.4,2.44490003]
[1641906804500,1.09972,3127.6,3127.5,0.00113684]
[1641906804700,1.09972,3127.6,3127.2,3.25986671]
[1641906804701,2.65,3127.5,3127.2,3.25986671]
[1641906804906,0.79975,3127.4,3127.2,3.25986671]
[1641906805101,4.8,3127.3,3126.7,8.12668597]
[1641906805302,0.29028769,3126.9,3126.7,3.2496124]
[1641906805501,1.09010209,3126.9,3126.8,0.00284212]
[1641906806701,1.59962,3126.7,3126.5,0.00454739]
[1641906808150,0.3,3126.8,3126.5,0.00454739]
[1641906808552,0.29028769,3126.9,3126.5,0.00454739]
[1641906808753,1.09001769,3126.9,3126.5,0.00454739]
[1641906809154,0.3,3126.7,3126.5,0.00454739]
[1641906809353,0.3,3126.8,3126.5,0.00454739]
[1641906809757,1.89968,3126.8,3126.5,0.00454739]
[1641906810161,1.59969,3126.7,3126.5,0.00454739]
[1641906810356,1.09984,3126.8,3126.5,0.00454739]
[1641906810856,0.7997145,3127.2,3126.5,0.00454739]
[1641906811060,1.59939,3127.2,3126.5,0.00454739]
[1641906811255,1.59938,3127.4,3126.5,0.00454739]
[1641906811256,3.19876,3127.4,3126.5,0.00454739]
[1641906811999,3.99849,3127.4,3126.5,0.00454739]
[1641906812200,0.79969,3127.2,3126.5,0.00454739]
[1641906812400,0.3,3127.1,3126.5,0.00454739]
[1641906813005,0.3,3127.1,3127.0,2.44609575]
[1641906813399,0.3,3127.1,3127.0,2.44780102]
[1641906816659,0.3,3127.1,3127.0,0.00170527]
[1641906817059,0.3,3127.1,3126.5,0.00454739]
[1641906817259,0.79978,3126.8,3126.5,0.00454739]
[1641906817656,0.3,3126.7,3126.5,0.00454739]
[1641906817858,0.3,3126.8,3126.5,0.00454739]
[1641906818060,0.79969,3127.2,3126.5,0.00454739]
[1641906818061,0.3,3127.1,3126.5,0.00454739]
[1641906818861,0.3,3127.1,3126.4,6.07740147]
[1641906819060,1.0997,3127.1,3126.4,3.73704739]
[1641906819300,0.00284212,3127.0,3126.4,3.73704739]
[1641906819705,0.0022737,3126.9,3126.8,1.23396726]
[1641906820002,0.0022737,3126.9,3126.8,3.97410711]
[1641906820305,0.0022737,3126.9,3126.8,22.67410711]
[1641906820500,0.0022737,3126.9,3126.8,4.97410711]
[1641906821301,0.0022737,3126.9,3126.8,8.17410711]
[1641906821704,0.0022737,3126.9,3126.8,12.24834604]
[1641906822506,0.0022737,3126.9,3126.8,12.56094996]
[1641906822704,0.0022737,3126.9,3126.8,33.97863785]
[1641906822969,0.79938,3128.5,3127.9,1.27152715]
[1641906823157,1.5987,3128.8,3127.0,18.7]
[1641906823361,0.00852635,3128.4,3127.4,0.88613423]
[1641906823557,0.00852635,3128.4,3127.5,6.67896741]
[1641906823757,0.00795792,3128.3,3127.5,6.67896741]
[1641906823958,0.00795792,3128.3,3127.6,1.0]
[1641906824159,0.0073895,3128.2,3127.6,1.0]
[1641906824358,0.0073895,3128.2,3127.6,3.71768789]
[1641906824560,0.00682108,3128.1,3127.6,3.71768789]
[1641906824960,0.00625265,3128.0,3127.6,2.71768789]
[1641906825161,0.00625265,3128.0,3127.7,2.71768789]
[1641906825361,0.00568423,3127.9,3127.7,2.71768789]
[1641906825761,0.00511581,3127.8,3127.6,2.71768789]
[1641906826068,0.00454738,3127.7,3127.6,2.71768789]
[1641906826261,0.00454738,3127.7,3127.5,4.1399]
[1641906826460,0.7994376,3128.3,3127.6,3.5]
[1641906826702,0.3,3128.2,3127.5,4.1399]
[1641906826902,0.79944,3128.1,3127.5,4.1399]
[1641906827302,0.00170527,3128.0,3127.5,4.1399]
[1641906827702,0.00113685,3127.9,3127.5,4.1399]
[1641906828104,0.00170527,3128.0,3127.5,4.1399]
[1641906828506,0.00113685,3127.9,3127.6,1.14930052]
[1641906828712,0.00113685,3127.9,3127.7,21.38977848]
[1641906829006,0.00397897,3128.4,3127.8,9.54244234]
[1641906829206,0.00397897,3128.4,3127.8,10.54244234]
[1641906829407,0.00341054,3128.3,3127.8,14.61668127]
[1641906829807,0.00625266,3128.8,3128.2,1.50257093]
[1641906830212,0.00568424,3128.7,3128.2,1.50257093]
[1641906830454,0.00568424,3128.7,3128.3,2.34111825]
[1641906830651,0.00511582,3128.6,3128.4,0.81685861]
[1641906831049,0.00454739,3128.5,3128.4,0.81685861]
[1641906831252,0.00454739,3128.5,3128.4,4.71685861]
[1641906832651,0.00454739,3128.5,3128.4,7.15328184]
[1641906832850,0.00454739,3128.5,3128.4,8.15328184]
[1641906833551,0.00454739,3128.5,3128.4,5.71685861]
[1641906834211,0.00454739,3128.5,3128.4,24.41685861]
[1641906835310,0.00454739,3128.5,3128.4,5.71685861]
[1641906836315,0.00454739,3128.5,3128.4,4.71685861]
[1641906837113,0.00454739,3128.5,3128.4,5.71685861]
[1641906837313,0.00454739,3128.5,3128.4,6.01685861]
[1641906837513,0.00454739,3128.5,3128.4,24.71685861]
[1641906838152,0.00454739,3128.5,3128.4,24.41685861]
[1641906838354,0.00454739,3128.5,3128.4,9.79197674]
[1641906838959,0.00454739,3128.5,3128.4,8.97511813]
[1641906839352,0.00454739,3128.5,3128.4,4.9]
[1641906839558,0.00454739,3128.5,3128.4,7.27996428]
[1641906840954,0.00454739,3128.5,3128.4,8.1372246]
[1641906841154,0.46818733,3129.3,3128.5,5.5]
[1641906841355,0.46818733,3129.3,3128.6,2.30326814]
[1641906841558,0.00397897,3129.2,3128.6,3.30326814]
[1641906841798,0.00397897,3129.2,3128.5,1.0]
[1641906841999,0.00341054,3129.1,3128.5,1.0]
[1641906842200,0.00341054,3129.1,3128.7,2.71670922]
[1641906842401,0.00284212,3129.0,3128.7,2.71670922]
[1641906842901,0.0022737,3128.9,3128.6,2.71670922]
[1641906843100,0.0022737,3128.9,3128.7,1.0]
[1641906843300,0.00170527,3128.8,3128.7,1.0]
[1641906843500,0.00170527,3128.8,3128.7,4.261461]
[1641906843700,0.00170527,3128.8,3128.7,3.261461]
[1641906843908,0.00170527,3128.8,3128.7,4.261461]
[1641906844302,0.00170527,3128.8,3128.7,3.261461]
[1641906844705,0.00170527,3128.8,3128.4,7.00544681]
[1641906845007,0.00113685,3128.7,3128.4,4.71596032]
[1641906845304,0.00454739,3129.3,3128.4,4.71596032]
[1641906845552,0.00454739,3129.3,3128.7,3.26013365]
[1641906845953,0.00454739,3129.3,3129.2,1.63006421]
[1641906846554,0.00454739,3129.3,3128.9,2.44509632]
[1641906846760,0.00454739,3129.3,3129.1,2.44509632]
[1641906847856,0.00454739,3129.3,3129.2,1.17259459]
[1641906848256,0.00454739,3129.3,3129.2,3.49223798]
[1641906848459,0.464,3130.7,3129.3,25.5]
[1641906848659,0.464,3130.7,3129.4,2.52139353]
[1641906848660,0.79886,3130.5,3129.4,2.52139353]
[1641906848858,0.00568423,3130.3,3129.6,0.87632256]
[1641906849311,0.79886,3130.5,3129.6,0.87632256]
[1641906849312,0.00511581,3130.2,3129.6,0.87632256]
[1641906849707,0.00454739,3130.1,3129.6,0.87632256]
[1641906850112,0.00397896,3130.0,3129.6,0.87632256]
[1641906850414,0.00341054,3129.9,3129.6,0.87632256]
[1641906850812,0.00284212,3129.8,3129.6,0.87632256]
[1641906851212,0.00227369,3129.7,3129.6,0.87632256]
[1641906854253,0.00227369,3129.7,3129.4,3.6589]
[1641906854254,0.05716274,3129.6,3129.4,3.6589]
[1641906854458,0.00227369,3129.7,3129.4,3.6589]
[1641906854654,0.464,3130.3,3129.4,3.6589]
[1641906854655,0.00113685,3129.5,3129.4,3.6589]
[1641906854852,0.00170527,3129.6,3129.4,3.6589]
[1641906855052,0.00113685,3129.5,3129.4,3.6589]
[1641906856257,0.00113685,3129.5,3128.7,1.1361]
[1641906856455,1.59848,3129.2,3128.7,1.1361]
[1641906856714,0.3,3129.1,3128.8,0.00284212]
[1641906856919,0.79932,3129.0,3128.8,0.00284212]
[1641906857314,0.79932,3129.0,3128.7,0.00341054]
[1641906857514,5.75,3128.9,3127.9,3.46575247]
[1641906857714,1.59877,3128.5,3127.9,3.46575247]
[1641906857914,1.59877,3128.5,3128.1,0.00341054]
[1641906858715,2.43338343,3128.8,3128.1,0.00341054]
[1641906858915,4.15,3128.7,3128.0,2.6565129]
[1641906859116,2.73338343,3128.8,3128.0,2.6565129]
[1641906859317,0.00284212,3128.6,3127.9,4.72526047]
[1641906859518,0.00341054,3128.7,3127.9,4.72526047]
[1641906859722,0.00227369,3128.5,3127.9,4.72526047]
[1641906859921,0.00284212,3128.6,3127.9,4.72526047]
[1641906860117,0.00170527,3128.4,3127.9,4.72526047]
[1641906860321,0.00227369,3128.5,3127.9,4.72526047]
[1641906860555,0.00113684,3128.3,3127.9,4.72526047]
[1641906860752,0.00170527,3128.4,3127.9,4.72526047]
[1641906860951,0.00341054,3128.7,3127.9,4.72526047]
[1641906861150,0.00113684,3128.3,3127.9,4.72526047]
[1641906861351,0.00284212,3128.6,3127.9,4.72526047]
[1641906861550,0.00341054,3128.7,3127.9,4.72526047]
[1641906861752,0.00227369,3128.5,3127.9,4.72526047]
[1641906861955,0.00284212,3128.6,3128.2,4.07563023]
[1641906862156,0.00170527,3128.4,3128.2,4.07563023]
[1641906862355,0.00227369,3128.5,3128.2,4.07563023]
[1641906862550,0.00113684,3128.3,3127.9,6.98903094]
[1641906862849,1.93392463,3128.8,3127.9,6.98903094]
[1641906862850,0.00341054,3128.7,3127.9,6.98903094]
[1641906863251,0.00284212,3128.6,3127.9,6.98903094]
[1641906863451,0.00284212,3128.6,3127.9,4.72526047]
[1641906863654,0.00227369,3128.5,3127.9,4.72526047]
[1641906864052,0.00170527,3128.4,3127.9,4.72526047]
[1641906864511,1.13464463,3128.8,3127.9,4.72526047]
[1641906864512,0.00113684,3128.3,3127.9,4.72526047]
[1641906864917,0.00341054,3128.7,3127.9,4.72526047]
[1641906865311,1.13464463,3128.8,3127.9,4.72526047]
[1641906865312,0.00284212,3128.6,3127.9,4.72526047]
[1641906865513,0.80215212,3128.6,3127.9,4.72526047]
[1641906865711,0.00227369,3128.5,3127.9,4.72526047]
[1641906866115,0.00170527,3128.4,3127.9,4.72526047]
[1641906866412,0.00113684,3128.3,3127.9,4.72526047]
[1641906866811,0.00341054,3128.7,3127.9,4.72526047]
[1641906867211,0.00284212,3128.6,3128.0,1.61661372]
[1641906867417,0.80215212,3128.6,3128.0,1.61661372]
[1641906867613,0.00227369,3128.5,3128.0,1.61661372]
[1641906868059,0.00170527,3128.4,3128.1,1.61661372]
[1641906868455,0.00113684,3128.3,3128.1,1.61661372]
[1641906868657,0.00113684,3128.3,3128.0,1.61661372]
[1641906868856,0.00227369,3128.5,3128.0,1.61661372]
[1641906869255,0.00170527,3128.4,3128.0,1.61661372]
[1641906869655,0.00113684,3128.3,3128.0,1.61661372]
[1641906870061,0.00227369,3128.5,3128.0,2.61661372]
[1641906870457,0.00170527,3128.4,3128.1,1.61661372]
[1641906870857,0.00113684,3128.3,3128.1,1.61661372]
[1641906871357,0.00341054,3128.7,3128.1,1.61661372]
[1641906871808,0.00284212,3128.6,3128.1,1.61661372]
[1641906872208,0.00227369,3128.5,3128.1,1.61661372]
[1641906872610,0.00170527,3128.4,3128.1,1.61661372]
[1641906873010,0.00113684,3128.3,3128.1,1.61661372]
[1641906873408,2.65655573,3128.5,3128.1,1.61661372]
[1641906873608,2.65655573,3128.5,3127.9,3.46575247]
[1641906873609,0.464,3128.4,3127.9,5.08236619]
[1641906873808,2.67336048,3128.3,3127.9,5.08236619]
[1641906874009,2.86259,3128.2,3127.9,5.08236619]
[1641906874209,3.55056598,3128.1,3127.9,1.61661372]
[1641906874411,6.57360877,3128.0,3127.8,1.61661372]
[1641906874609,2.77360877,3128.0,3127.8,1.61661372]
[1641906874813,1.56353,3128.1,3127.9,0.00113685]
[1641906875010,7.0,3127.9,3127.8,1.61661372]
[1641906875214,10.22645501,3127.9,3127.8,1.61661372]
[1641906875657,3.52645501,3127.9,3127.8,1.61661372]
[1641906875858,5.12581501,3127.9,3127.4,1.61661372]
[1641906876059,1.5992966,3127.7,3127.4,1.61661372]
[1641906876259,0.464,3127.6,3127.5,0.00227369]
[1641906876461,0.764,3127.6,3127.5,0.00227369]
[1641906877261,0.764,3127.6,3126.9,2.40773364]
[1641906877463,0.764,3127.6,3127.1,0.0022737]
[1641906878061,0.764,3127.6,3127.0,1.55488742]
[1641906878259,0.0022737,3127.5,3126.9,4.45378885]
[1641906878461,0.0022737,3127.5,3126.9,4.40378885]
[1641906878661,0.00170527,3127.4,3126.9,4.40378885]
[1641906878862,0.00170527,3127.4,3126.9,3.66266893]
[1641906879214,0.00113685,3127.3,3127.0,2.71770878]
[1641906879611,0.0022737,3127.5,3127.0,2.71770878]
[1641906880009,0.00170527,3127.4,3127.1,1.0]
[1641906880416,0.13819997,3128.2,3127.3,4.55]
[1641906880611,0.13819997,3128.2,3127.9,1.23901786]
[1641906880812,0.00568424,3128.1,3127.9,1.23901786]
[1641906881213,0.00511581,3128.0,3127.9,1.23901786]
[1641906881812,0.00511581,3128.0,3127.9,2.0280039]
[1641906883554,0.00511581,3128.0,3127.9,20.7280039]
[1641906884154,0.00511581,3128.0,3127.9,21.7280039]
[1641906884955,0.00511581,3128.0,3127.9,28.22849676]
[1641906885955,0.00511581,3128.0,3127.9,25.80357618]
[1641906887001,0.00511581,3128.0,3127.9,28.22849676]
[1641906888004,0.00511581,3128.0,3127.9,25.80357618]
[1641906888212,1.18556185,3129.3,3128.8,1.39525612]
[1641906888406,1.18044813,3129.3,3128.0,28.18973308]
[1641906888608,0.00682109,3129.2,3128.1,19.7]
[1641906889006,0.00625266,3129.1,3128.6,0.7956064]
[1641906889407,0.00568424,3129.0,3128.7,1.18200539]
[1641906889609,0.00568424,3129.0,3128.8,18.83819997]
[1641906889808,2.50319236,3130.7,3128.9,21.86476034]
[1641906890009,9.74815819,3130.8,3129.0,3.66830107]
[1641906890210,0.7987789,3130.7,3129.1,1.26277]
[1641906890470,6.24815819,3130.8,3129.2,2.5236294]
[1641906890660,0.00917901,3130.6,3129.3,1.0]
[1641906890865,0.00974744,3130.7,3129.3,1.0]
[1641906891360,0.00974744,3130.7,3129.5,1.30281697]
[1641906891559,0.00974744,3130.7,3129.6,3.6114]
[1641906891760,0.80857744,3130.7,3129.6,3.6114]
[1641906891959,0.6,3130.6,3129.6,3.6114]
[1641906892364,0.00861059,3130.5,3129.6,3.6114]
[1641906892563,0.3,3130.4,3129.6,3.6114]
[1641906892761,0.30804217,3130.4,3129.6,3.6114]
[1641906892964,0.00747374,3130.3,3129.6,3.6114]
[1641906893367,0.00690532,3130.2,3129.6,3.6114]
[1641906893765,0.0063369,3130.1,3129.6,3.6114]
[1641906894211,0.00576847,3130.0,3129.6,3.6114]
[1641906894411,0.00576847,3130.0,3129.8,1.61640219]
[1641906894610,0.29864386,3130.3,3129.8,1.61640219]
[1641906894611,0.00520005,3129.9,3129.8,1.61640219]
[1641906895012,0.00520005,3129.9,3129.6,5.22780219]
[1641906895414,0.00463163,3129.8,3129.6,5.22780219]
[1641906895611,0.30463163,3129.8,3129.6,5.22780219]
[1641906895810,0.0040632,3129.7,3129.5,1.61640219]
[1641906896212,0.00349478,3129.6,3129.5,1.61640219]
[1641906896813,0.00349478,3129.6,3129.4,1.39934957]
[1641906897013,0.00349478,3129.6,3129.5,5.14091849]
[1641906897212,1.0989711,3129.9,3129.5,7.46598513]
[1641906897413,0.3,3129.9,3129.5,5.14091849]
[1641906897613,0.00463163,3129.8,3129.5,7.45438107]
[1641906898056,0.0040632,3129.7,3129.6,5.65]
[1641906898259,0.0040632,3129.7,3129.6,7.99704059]
[1641906898453,0.0040632,3129.7,3129.6,10.42164387]
[1641906898658,0.0040632,3129.7,3129.6,8.07460328]
[1641906898852,0.0040632,3129.7,3129.6,10.42390301]
[1641906899053,0.0040632,3129.7,3129.6,5.77390301]
[1641906899252,0.0040632,3129.7,3129.6,6.06561494]
[1641906899657,0.7529364,3130.2,3129.7,2.7]
[1641906900055,0.0022737,3130.1,3129.9,1.24697354]
[1641906900455,0.00170527,3130.0,3129.9,1.24697354]
[1641906901053,0.00170527,3130.0,3129.8,2.71631521]
[1641906901456,0.00113685,3129.9,3129.6,1.0]
[1641906901712,0.00113685,3129.9,3129.4,1.0]
[1641906901912,0.29864386,3130.3,3129.4,1.0]
[1641906901913,0.00284212,3130.2,3129.4,1.0]
[1641906902113,0.00284212,3130.2,3129.5,0.00113684]
[1641906902512,0.80170602,3130.2,3129.5,0.00113684]
[1641906902715,0.80170602,3130.2,3129.5,1.15390373]
[1641906902912,0.80170602,3130.2,3129.5,0.00113684]
[1641906903113,0.00284212,3130.2,3129.5,0.00113684]
[1641906903413,0.30284212,3130.2,3129.5,0.00113684]
[1641906903816,0.00284212,3130.2,3129.5,0.00113684]
[1641906904014,0.30284212,3130.2,3129.5,0.00113684]
[1641906904212,1.10172112,3130.2,3129.5,0.00113684]
[1641906904613,1.10172112,3130.2,3129.5,2.29598899]
[1641906904812,0.30284212,3130.2,3129.5,2.29598899]
[1641906905012,0.30284212,3130.2,3129.5,1.00113684]
[1641906905013,0.00284212,3130.2,3129.5,1.00113684]
[1641906905214,0.00284212,3130.2,3129.5,2.28595731]
[1641906905473,0.30284212,3130.2,3129.5,2.28595731]
[1641906905864,0.30284212,3130.2,3129.5,0.00113684]
[1641906906472,0.7989108,3130.0,3129.5,0.00113684]
[1641906906870,0.00113685,3129.9,3129.5,0.00113684]
[1641906908769,0.80010685,3129.9,3129.5,0.00113684]
[1641906908974,0.7989961,3129.8,3129.5,0.00113684]
[1641906909216,0.7989961,3129.8,3129.3,0.00227369]
[1641906909417,0.80010685,3129.9,3129.3,0.00227369]
[1641906909418,0.00113685,3129.9,3129.6,0.50872187]
[1641906909918,0.7989272,3129.8,3129.6,0.50872187]
[1641906910716,0.3,3129.8,3129.6,0.50872187]
[1641906910917,0.00113685,3129.9,3129.6,0.50872187]
[1641906910918,0.00113685,3129.9,3129.7,1.2007669]
[1641906911119,0.00113685,3129.9,3129.8,7.12516242]
[1641906911318,0.00113685,3129.9,3129.8,10.07516242]
[1641906911522,0.00113685,3129.9,3129.8,29.63501977]
[1641906912716,0.00113685,3129.9,3129.8,25.40985735]
[1641906912972,0.00113685,3129.9,3129.8,29.48542963]
[1641906913356,2.5236294,3131.0,3130.3,1.24993335]
[1641906913559,0.7986739,3130.9,3130.0,3.6386]
[1641906913960,0.79873,3130.7,3130.0,3.6386]
[1641906914360,0.00397896,3130.6,3130.0,3.6386]
[1641906914758,0.00341054,3130.5,3130.4,1.62943055]
[1641906916818,0.00341054,3130.5,3130.4,2.7157632]
[1641906917313,0.83958028,3131.3,3130.4,2.7157632]
[1641906917314,0.3173314,3131.3,3130.4,2.44414582]
[1641906917814,0.00397897,3131.2,3130.4,2.44414582]
[1641906918018,1.5973905,3130.8,3130.4,2.44414582]
[1641906918215,3.95,3130.6,3130.4,2.7157632]
[1641906918414,3.35414904,3130.7,3130.4,2.7157632]
[1641906918619,0.6811199,3130.7,3130.4,2.7157632]
[1641906919015,0.6811199,3130.7,3130.3,3.73320694]
[1641906919215,0.7988,3130.5,3130.3,3.73320694]
[1641906919420,0.3,3130.5,3130.3,3.73320694]
[1641906919618,0.798926,3130.6,3130.4,2.7157632]
[1641906919817,1.63306835,3130.6,3130.4,2.7157632]
[1641906920018,1.63306835,3130.6,3130.4,3.22448507]
[1641906920460,1.63306835,3130.6,3130.5,0.50872187]
[1641906921354,1.63306835,3130.6,3130.5,3.22448507]
[1641906922554,1.63306835,3130.6,3130.5,3.16048507]
[1641906925513,1.63306835,3130.6,3130.5,3.22448507]
[1641906925715,1.63306835,3130.6,3130.5,3.66920694]
[1641906926513,2.43192835,3130.6,3130.5,3.66920694]
[1641906928358,2.73192835,3130.6,3130.5,3.66920694]
[1641906928559,2.73192835,3130.6,3130.1,1.62445554]
[1641906928560,0.79895,3130.4,3130.1,1.62445554]
[1641906928759,2.07425014,3130.3,3130.1,1.62445554]
[1641906928957,2.07425014,3130.3,3129.6,3.25886109]
[1641906928958,6.45,3130.2,3129.6,3.25886109]
[1641906929158,0.464,3130.1,3129.6,1.6246489]
[1641906929358,1.764,3130.1,3129.7,0.00454739]
[1641906929957,0.08315474,3130.1,3129.7,0.00454739]
[1641906930159,0.38315474,3130.1,3129.7,0.00454739]
[1641906930459,1.68123214,3130.1,3129.4,0.00625266]
[1641906930660,0.3,3129.9,3129.4,0.00625266]
[1641906930858,5.75,3130.0,3129.2,0.07790903]
[1641906931063,0.0022737,3129.8,3129.2,0.07790903]
[1641906931258,0.00284212,3129.9,3129.2,0.07790903]
[1641906931458,0.00170527,3129.7,3129.2,0.76382885]
[1641906931715,0.0022737,3129.8,3129.2,0.69982885]
[1641906931915,0.00113685,3129.6,3129.2,0.69982885]
[1641906932117,0.00170527,3129.7,3129.2,0.69982885]
[1641906932320,0.00284212,3129.9,3129.2,0.01390903]
[1641906932518,0.00113685,3129.6,3129.2,0.01390903]
[1641906932717,0.79899,3129.7,3129.2,0.01390903]
[1641906932921,0.79899,3129.7,3129.0,5.51492356]
[1641906933117,0.00113685,3129.6,3129.0,5.51492356]
[1641906933318,0.00113685,3129.6,3129.1,0.00170527]
[1641906934118,0.79901,3129.5,3129.1,0.00170527]
[1641906934318,1.5980102,3129.5,3129.1,0.00170527]
[1641906935463,1.5981128,3129.4,3129.1,0.00170527]
[1641906935666,1.5981128,3129.4,3129.0,3.26113478]